Cogmind - Beta 10.1 @@@ ROGUE MODE // 2021.07.15 @ 17:34:53 // Winter2019/RPGLIKE Player: Farfid Result: Destroyed by G-67 Veteran with Electrolaser Performance ------------- Evolutions (7) 3500 Regions Visited (30) 6000 Robots Destroyed (837) 4185 Value Destroyed (36482) 36482 Prototype IDs (78) 1560 Alien Tech Used (0) 0 Bonus (29185) 29185 TOTAL SCORE: 80912 Bonus ------- Triggered High Security 500 High Alert Combat Kills 15989 Follower Combat Kills 3891 Network Hubs Disabled 400 Met Data Miner 300 Met Imprinter 300 Exposed GOLEM Chamber 500 Met Warlord at Base 500 MAIN.C Attacked Warlord 500 Warlord Defense Kill 10714 A7 Reached Mainframe 300 Met R17 at Cetus 500 Scanned by Researcher 500 Friendly Fire -5709 Cogmind --------- Core Integrity 0/2000 Matter 499/500 Energy 251/950 System Corruption 9% Temperature Cool (14) Movement Rolling (110) Ox2 Location -3/Armory Parts ------- > --- POWER (3) -------- Improved Quantum Reactor Vortex Chain Reactor > --- PROPULSION (2) --- Centrium Wheel Centrium Wheel > --- UTILITY (11) ----- Improved Fusion Compressor Experimental Targeting Computer Advanced Target Analyzer Experimental Core Analyzer Recoil Nullifier Advanced Kinecellerator Improved Weapon Cycler Experimental Focal Shield Advanced Force Field > --- WEAPON (6) ------- Heavy Battle Rifle Heavy Battle Rifle Heavy Battle Rifle Heavy Battle Rifle Heavy Battle Rifle Helical Railgun > --- INVENTORY (5) ---- Protomatter-79 Protomatter-78 Protomatter-62 Experimental Terrain Scanner Improved System Restoration Module Peak State ------------ > --- POWER ------------ Improved Quantum Reactor Vortex Chain Reactor > --- PROPULSION ------- Centrium Wheel Centrium Wheel > --- UTILITY ---------- Experimental Terrain Scanner Experimental Targeting Computer Advanced Target Analyzer Experimental Core Analyzer Recoil Nullifier Matter Filter Advanced Kinecellerator Improved Weapon Cycler Experimental Focal Shield Advanced Force Field Long-range Tractor Beam > --- WEAPON ----------- Heavy Battle Rifle Heavy Battle Rifle Heavy Battle Rifle Heavy Battle Rifle Enhanced Coil Gun Helical Railgun > --- INVENTORY -------- Protomatter Protomatter Protomatter Improved Fusion Compressor Improved System Restoration Module [Rating: 151] Favorites ----------- Power Quantum Reactor Engine Heavy Deuterium Engine Power Core Light Neutrino Core Reactor Quantum Reactor Propulsion Armored Huge Wheel Wheel Armored Huge Wheel Utility Long-range Tractor Beam Device Long-range Tractor Beam Storage Zionite Biocell Processor Improved Target Analyzer Protection Layered Medium Armor Plating Weapon Improved Heavy Machine Gun Energy Gun EM Shotgun Energy Cannon Advanced Beam Cannon Ballistic Gun Improved Heavy Machine Gun Ballistic Cannon Light Cannon Build | -11 -10 -10 -9 -9 -9 -8 -8 -7 -7 -7 -7 -7 -6 -6 -6 -6 -6 -5 -5 -5 -5 -5 -5 -4 -4 -4 -4 -3 -3 -3 ------- Run | Scr Mat Min Mat Min Exi Min Mat Fac Low Low Zio Dee Pro Fac Low Low Dat Pro Fac Ext Cet Arc Hub Fac Upp Upp War Pro Res Arm Slots Evolved 18 | 2 . . 3 . . . 3 2 . . 1 . . 4 . . . . 1 . 1 . . . . . 1 . . . Power 2 | . . . . . . . . . . . 1 . . . . . . . 1 . . . . . . . . . . . Propulsion 1 | 1 . . . . . . . . . . . . . . . . . . . . . . . . . . . . . . Utility 10 | . . . 2 . . . 2 2 . . . . . 2 . . . . . . 1 . . . . . 1 . . . Weapon 5 | 1 . . 1 . . . 1 . . . . . . 2 . . . . . . . . . . . . . . . . Parts Attached 175 | 5 3 3 9 . . . 16 7 3 1 2 3 1 16 1 1 . 2 12 6 7 4 2 24 9 . 20 . 6 12 Power 17 | 1 . . 1 . . . 2 1 . . 1 . . . . . . . 1 2 3 . 1 2 . . 2 . . . Engine 5 | 1 . . 1 . . . 2 1 . . . . . . . . . . . . . . . . . . . . . . Core 3 | . . . . . . . . . . . . . . . . . . . 1 2 . . . . . . . . . . Reactor 9 | . . . . . . . . . . . 1 . . . . . . . . . 3 . 1 2 . . 2 . . . Propulsion 10 | 2 . 2 . . . . 1 . . . . . . . . . . . . . . . . . 2 . 2 . 1 . Treads . | . . . . . . . . . . . . . . . . . . . . . . . . . . . . . . . Leg . | . . . . . . . . . . . . . . . . . . . . . . . . . . . . . . . Wheel 10 | 2 . 2 . . . . 1 . . . . . . . . . . . . . . . . . 2 . 2 . 1 . Hover . | . . . . . . . . . . . . . . . . . . . . . . . . . . . . . . . Flight . | . . . . . . . . . . . . . . . . . . . . . . . . . . . . . . . Utility 88 | . 1 1 3 . . . 6 3 3 . . 3 . 6 1 1 . 2 11 4 3 2 1 15 5 . 11 . 5 1 Device 61 | . 1 1 1 . . . 4 3 1 . . 2 . 2 1 1 . 1 10 3 2 . 1 14 1 . 7 . 4 1 Storage 9 | . . . . . . . . . . . . 1 . . . . . . . . 1 2 . 1 3 . . . 1 . Processor 11 | . . . . . . . 1 . 1 . . . . 2 . . . . 1 1 . . . . 1 . 4 . . . Hackware . | . . . . . . . . . . . . . . . . . . . . . . . . . . . . . . . Protection 7 | . . . 2 . . . 1 . 1 . . . . 2 . . . 1 . . . . . . . . . . . . Artifact . | . . . . . . . . . . . . . . . . . . . . . . . . . . . . . . . Weapon 60 | 2 2 . 5 . . . 7 3 . 1 1 . 1 10 . . . . . . 1 2 . 7 2 . 5 . . 11 Energy Gun 3 | . . . 2 . . . . . . . . . . . . . . . . . . 1 . . . . . . . . Energy Cannon 2 | . . . 1 . . . . . . . . . . . . . . . . . . . . . . . . . . 1 Ballistic Gun 53 | 2 1 . 2 . . . 7 3 . 1 1 . 1 10 . . . . . . 1 1 . 7 2 . 5 . . 9 Ballistic Cannon 2 | . 1 . . . . . . . . . . . . . . . . . . . . . . . . . . . . 1 Launcher . | . . . . . . . . . . . . . . . . . . . . . . . . . . . . . . . Special Weapon . | . . . . . . . . . . . . . . . . . . . . . . . . . . . . . . . Impact Weapon . | . . . . . . . . . . . . . . . . . . . . . . . . . . . . . . . Slashing Weapon . | . . . . . . . . . . . . . . . . . . . . . . . . . . . . . . . Piercing Weapon . | . . . . . . . . . . . . . . . . . . . . . . . . . . . . . . . Special Melee Weapon . | . . . . . . . . . . . . . . . . . . . . . . . . . . . . . . . Unidentified Prototypes 23 | . . . . . . . 1 2 . . . 2 . 1 . . . . 1 . . 1 . 5 . . 7 . 1 2 Parts Lost 2 | . . . . . . . . . . . . . . . . . . . . . . . . . . . . . . 2 Power . | . . . . . . . . . . . . . . . . . . . . . . . . . . . . . . . Propulsion . | . . . . . . . . . . . . . . . . . . . . . . . . . . . . . . . Utility 2 | . . . . . . . . . . . . . . . . . . . . . . . . . . . . . . 2 Weapon . | . . . . . . . . . . . . . . . . . . . . . . . . . . . . . . . Highest Loss Streak 2 | . . . . . . . . . . . . . . . . . . . . . . . . . . . . . . 2 Average Slot Usage (%) 92 | . 91 100 99 100 100 100 80 84 88 92 92 93 93 93 93 94 94 94 94 94 95 95 95 94 94 95 92 95 95 94 Engine 4 | . 16 16 12 11 11 11 9 7 7 7 6 6 6 5 5 5 5 5 5 5 . . . . . . . . . . Reactor 6 | . . . . . . . . . . . 5 6 6 5 5 5 5 5 5 5 9 14 14 14 14 14 11 9 9 9 Wheel 7 | . 33 33 25 22 22 22 9 7 7 7 6 6 6 5 5 5 5 5 5 5 4 4 4 4 4 4 4 9 9 9 Device 31 | . 8 16 19 22 22 22 21 32 35 35 33 32 33 32 30 31 31 31 33 35 33 33 33 33 36 33 33 36 36 35 Processor 7 | . . . . . . . . . 3 7 6 6 6 10 10 10 10 10 10 10 9 9 9 9 9 9 11 13 13 13 Protection 3 | . . . 10 11 11 11 9 7 7 7 6 6 6 5 5 5 5 4 1 . . . . . . . . . . . Ballistic Gun 27 | . 19 16 16 22 22 22 28 29 28 28 26 26 26 25 31 31 31 31 30 30 28 28 28 27 28 28 27 27 27 26 Naked Turns . | . . . . . . . . . . . . . . . . . . . . . . . . . . . . . . . Heaviest Build 115 | 7 11 11 26 26 26 26 44 53 53 42 55 55 55 69 69 70 70 70 77 74 104 107 104 107 107 104 104 98 108 115 Greatest Support 37 | 31 31 31 25 25 25 25 33 33 33 33 33 33 33 33 33 33 33 33 33 33 33 33 33 33 33 33 33 31 37 37 Greatest Overweight (x) 4 | . . . 1 1 1 1 1 1 1 1 1 1 1 2 2 2 2 2 2 2 3 3 3 3 4 3 4 3 3 3 Average Overweight (x) 1 | . . . . 1 1 1 . 1 1 1 1 1 1 1 2 2 2 1 2 2 2 3 3 2 3 3 3 3 2 2 Largest Inventory Capacity 5 | 1 1 1 1 2 2 2 3 3 3 3 3 4 4 4 4 4 4 5 5 5 5 5 5 5 5 5 5 5 5 5 Average Capacity 4 | 1 1 1 1 1 2 2 2 3 3 3 3 3 4 4 4 4 4 4 5 5 5 5 5 5 5 5 5 5 5 5 Most Carried 5 | . 1 1 1 2 2 2 3 3 3 3 3 4 4 4 4 4 4 5 5 5 5 5 5 4 5 5 5 4 5 5 Average Carried 3 | . . . . 1 2 2 2 2 2 2 2 3 3 3 3 4 4 4 4 4 4 5 5 2 4 5 4 4 4 4 Final Capacity 5 | 1 1 1 1 2 2 2 3 3 3 3 3 4 4 4 4 4 4 5 5 5 5 5 5 5 5 5 5 5 5 5 Final Carried 5 | . . . 1 2 2 2 1 3 3 2 3 4 2 3 4 4 4 5 3 5 5 5 5 2 5 5 4 4 5 5 Class Distribution -------------------- 32% | Generator-Executioner 21% | Hacker-Gunner 12% | Hacker-Executioner 8% | Tank 6% | Gunner 5% | Commander-Executioner 3% | Mutant 3% | Generator-Mutant Dominant Class ---------------- Mutant | -10/Materials Mutant | -10/Mines Mutant | -9/Materials Tank | -9/Mines Tank | -9/Exiles Tank | -8/Mines Tank | -8/Materials Gunner | -7/Factory Hacker-Gunner | -7/Lower Caves Hacker-Gunner | -7/Lower Caves Hacker-Gunner | -7/Zion Hacker-Gunner | -7/Deep Caves Hacker-Gunner | -6/Proximity Caves Hacker-Gunner | -6/Factory Hacker-Executioner | -6/Lower Caves Hacker-Executioner | -6/Lower Caves Hacker-Mutant | -6/Data Miner Hacker-Executioner | -5/Proximity Caves Generator-Executioner | -5/Factory Commander-Executioner | -5/Extension Generator-Executioner | -5/Cetus Generator-Executioner | -5/Archives Generator-Executioner | -5/Hub_04(d) Generator-Executioner | -4/Factory Generator-Executioner | -4/Upper Caves Generator-Executioner | -4/Upper Caves Generator-Executioner | -4/Warlord Generator-Executioner | -3/Proximity Caves Generator-Executioner | -3/Research Generator-Executioner | -3/Armory Resources | -11 -10 -10 -9 -9 -9 -8 -8 -7 -7 -7 -7 -7 -6 -6 -6 -6 -6 -5 -5 -5 -5 -5 -5 -4 -4 -4 -4 -3 -3 -3 ----------- Run | Scr Mat Min Mat Min Exi Min Mat Fac Low Low Zio Dee Pro Fac Low Low Dat Pro Fac Ext Cet Arc Hub Fac Upp Upp War Pro Res Arm Matter Collected 16409 | 250 135 191 309 194 . 78 1204 1896 78 177 1289 108 651 1760 260 173 . 619 1004 451 284 88 107 1220 316 319 1266 361 176 1445 Remotely 15571 | . . . 179 194 . 78 1158 1870 78 177 1289 108 651 1755 260 172 . 619 1004 443 284 88 107 1209 309 319 1266 361 176 1417 Salvage Created 35454 | . 149 164 751 306 . 116 1476 2440 175 591 1406 108 944 3916 360 406 . 1161 3079 1897 291 102 628 2769 523 1018 4555 1439 358 4326 Parts 1767 | . 6 11 57 25 . 19 96 134 8 8 130 13 46 203 28 17 . 74 134 83 12 6 21 157 28 33 165 47 32 174 Haulers Intercepted 34 | . . . 1 . . . 5 4 . . . . . 8 . . . . 7 2 . . 1 6 . . . . . . Recyclers Shooed 9 | . . . 1 . . 1 . . . . . . . 1 . . . . 3 3 . . . . . . . . . . Parts Field Recycled . | . . . . . . . . . . . . . . . . . . . . . . . . . . . . . . . Retrieved Matter . | . . . . . . . . . . . . . . . . . . . . . . . . . . . . . . . Parts Self-Destructed 493 | . . . . . . . . . 8 6 . . 46 . 28 13 . 78 . . . . . . 28 33 206 47 . . Prevented 7 | . . . . . . . . . . 1 . . 3 . . . . . . . . . . . 2 . 1 . . . Kills | -11 -10 -10 -9 -9 -9 -8 -8 -7 -7 -7 -7 -7 -6 -6 -6 -6 -6 -5 -5 -5 -5 -5 -5 -4 -4 -4 -4 -3 -3 -3 ------- Run | Scr Mat Min Mat Min Exi Min Mat Fac Low Low Zio Dee Pro Fac Low Low Dat Pro Fac Ext Cet Arc Hub Fac Upp Upp War Pro Res Arm Combat Hostiles Destroyed 643 | . 4 7 15 8 . 6 35 53 2 3 10 6 22 70 12 8 . 38 48 23 3 2 5 55 13 19 78 20 7 71 Melee 1 | . . . . . . . . . . . . . . . . . . . . . . . . 1 . . . . . . Guns 602 | . 1 3 8 3 . 2 35 49 2 3 10 6 22 63 12 8 . 38 48 23 3 2 3 51 13 19 77 20 7 71 Cannons 23 | . 3 4 7 5 . 4 . . . . . . . . . . . . . . . . . . . . . . . . AOE 15 | . . . . . . . . 4 . . . . . 7 . . . . . . . . 1 3 . . . . . . Classes Destroyed 29 | . 1 2 5 2 . . 2 5 . . 4 2 . 1 . . . 1 . . . . . . . . 3 . . 1 Worker 30 | . . 1 3 1 . 2 1 2 . . . . . 10 . . . . 4 . . . 4 2 . . . . . . Builder 17 | . . . 1 . . . 1 1 . . . . . 1 . . . . 4 . . . 2 7 . . . . . . Tunneler 4 | . . . . 1 . . . 1 . . . . . . . . . . 2 . . . . . . . . . . . Hauler 34 | . . . 1 . . . 5 4 . . . . . 8 . . . . 7 2 . . 1 6 . . . . . . Recycler 11 | . . . 1 2 . . 1 1 . . . . . . . . . . 3 2 . . 1 . . . . . . . Carrier 1 | . . . . . . . . 1 . . . . . . . . . . . . . . . . . . . . . . Minesweeper 1 | . . . . . . . . . . . . . . . . . . 1 . . . . . . . . . . . . Mechanic 4 | . . . . . . . . 1 . . . . . 2 . . . . . . . . . . . . 1 . . . Operator 4 | . . . . . . . . 1 . . . . . . . . . . . 1 . . . 1 . . . . . 1 Watcher 15 | . . . . . . . 1 1 . . . . . 6 . . . . 1 . . . . 4 . . . . 1 1 Swarmer 141 | . . 3 4 . . 6 11 5 . . . . 10 11 6 4 . 12 23 3 . . . 22 3 2 6 8 . 2 Saboteur 11 | . . . . . . . . . . . . . . 1 . . . . 1 . . . . 1 . . 2 . . 6 Grunt 254 | . 4 4 5 7 . . 15 31 . 1 . . 6 27 5 4 . 21 14 14 1 . 2 7 6 13 37 5 . 25 Brawler 21 | . . . . 1 . . . 4 . . . . 1 3 . . . . . . . . . . . . 7 1 . 4 Duelist 34 | . . . 2 . . . . 3 . 1 . . . 8 . . . 3 1 3 . . . 2 . . 4 2 . 5 Protector 14 | . . . . . . . . 1 . . . . . 1 . . . . . . . . 2 . . . 3 . . 7 Sentry 55 | . . . 4 . . . 8 4 1 1 . . 2 11 . . . 1 1 2 . 2 1 7 1 2 . 1 4 2 Demolisher 2 | . . . . . . . . . . . . . . . . . . . . . . . . . . . . . . 2 Specialist 15 | . . . . . . . . . . . . . . . . . . . . . . . . . . . 5 . . 10 Hunter 27 | . . . . . . . 1 3 . . 1 . 2 4 1 . . . 1 . . . . 4 2 2 3 2 . 1 Programmer 43 | . . . . . . . . 2 1 . . . . 3 . . . . 6 . . . . 12 1 . 4 . 3 11 Behemoth 6 | . . . . . . . . . . . . . 1 1 . . . 1 1 1 . . . . . . . 1 . . Cetus Guard 3 | . . . . . . . . . . . . . . . . . . . . . 3 . . . . . . . . . Investigator 1 | . . . . . . . . . . . . . . . . . . . . . . . . . . . . . . 1 Striker 5 | . . . . . . . . . . . . . . . . . . . . . . . . . . . 3 . . 2 Executioner 5 | . . . . . . . . . . . . . . . . . . . . . . . . . . . 4 . . 1 Zionite 52 | . . . . . . . . . . . 52 . . . . . . . . . . . . . . . . . . . Z-Technician 5 | . . . . . . . . . . . . 5 . . . . . . . . . . . . . . . . . . Z-Light 3 | . . . . . . . . . . . . 3 . . . . . . . . . . . . . . . . . . Decomposer 2 | . . . . . . . . . . . . . 2 . . . . . . . . . . . . . . . . . Packrat 2 | . . . . . . . . . . 2 . . . . . . . . . . . . . . . . . . . . Assembled 3 | . . . . . . . . . . . . 3 . . . . . . . . . . . . . . . . . . Thug 1 | . . . . . . . . . . . . . . . . . . . . 1 . . . . . . . . . . Savage 1 | . . . . . . . . . . . . . . . . . . . . . 1 . . . . . . . . . Martyr 1 | . . . . . . . . . . . 1 . . . . . . . . . . . . . . . . . . . Marauder 2 | . . . . . . . . . . . 2 . . . . . . . . . . . . . . . . . . . Mutant 5 | . . . . . . . . . . . 5 . . . . . . . . . . . . . . . . . . . Best Kill Streak 31 | . 3 4 11 3 . 8 7 11 1 2 31 5 7 14 3 4 . 9 13 8 2 2 12 9 7 6 21 9 2 24 Combat Bots Only 23 | . 3 3 8 3 . 6 7 10 1 2 2 3 7 11 3 4 . 9 9 7 2 2 5 7 7 6 20 9 2 23 Max Kills in Single Turn 5 | . 1 1 2 1 . 2 3 4 1 2 2 5 3 3 2 3 . 3 3 3 2 1 3 3 2 2 3 2 2 4 Gunslinging 2 | . . . . . . . 2 1 . 1 . 1 2 2 1 2 . 2 1 1 1 . 1 2 1 1 2 1 1 1 Exploded 3 | . . . . . . . . 2 . . . . . 3 . . . . . . . . 1 2 . . . . . . Melee 1 | . . . . . . . . . . . . . . . . . . . . . . . . 1 . . . . . . Uniques/NPCs Destroyed 2 | . . . . . . . . . . . 1 . . . . . . . . . 1 . . . . . . . . . Imprinter (-7/Zion) A7 (-5/Cetus) Combat | -11 -10 -10 -9 -9 -9 -8 -8 -7 -7 -7 -7 -7 -6 -6 -6 -6 -6 -5 -5 -5 -5 -5 -5 -4 -4 -4 -4 -3 -3 -3 -------- Run | Scr Mat Min Mat Min Exi Min Mat Fac Low Low Zio Dee Pro Fac Low Low Dat Pro Fac Ext Cet Arc Hub Fac Upp Upp War Pro Res Arm Damage Taken 21402 | . 196 370 687 86 . 170 1388 942 69 222 709 218 1144 3037 164 223 . 480 1122 203 158 . 1273 987 246 466 2675 376 75 3716 Core 15705 | . 167 298 490 63 . 101 755 583 43 154 481 134 807 2196 113 169 . 343 835 155 123 . 1011 772 197 374 2139 297 58 2847 Absorbed by Shields 5319 | . . . . . . . . . . . . . . . . . . . 166 74 57 . 446 358 96 171 1012 137 58 2744 Redirected to Core 13996 | . 102 228 423 54 . 94 631 522 43 119 450 134 697 2000 113 169 . 334 763 155 123 . 955 746 171 323 1783 253 58 2553 Core Remaining (%) 90 | 100 . 96 . . . 95 98 . . . . . 100 . . . . 100 . . . . 33 . . . . 100 . . Volleys Fired 1199 | . 15 30 40 21 . 13 103 111 3 11 93 20 42 151 17 11 . 45 69 30 16 4 13 80 17 26 82 28 11 97 Largest 6 | . 2 2 3 3 . 3 4 4 4 4 4 4 4 6 6 6 . 6 6 6 6 6 6 6 6 6 6 6 6 6 Hottest 203 | . 55 55 114 114 . 114 114 103 103 111 119 119 119 129 108 108 . 108 108 108 110 110 110 128 128 164 203 203 203 203 Shots Fired 5365 | . 30 60 100 63 . 39 309 444 12 44 366 50 154 637 102 66 . 258 408 162 95 24 37 450 102 156 487 167 50 493 Gun 5257 | . 15 30 78 42 . 26 302 444 12 44 366 50 154 637 102 66 . 258 408 162 95 24 37 450 102 156 487 167 50 493 Cannon 108 | . 15 30 22 21 . 13 7 . . . . . . . . . . . . . . . . . . . . . . . Launcher . | . . . . . . . . . . . . . . . . . . . . . . . . . . . . . . . Special . | . . . . . . . . . . . . . . . . . . . . . . . . . . . . . . . Kinetic 5286 | . 30 60 62 42 . 26 302 444 12 44 366 50 154 637 102 66 . 258 408 162 95 24 37 450 102 156 487 167 50 493 Thermal 70 | . . . 29 21 . 13 7 . . . . . . . . . . . . . . . . . . . . . . . Explosive . | . . . . . . . . . . . . . . . . . . . . . . . . . . . . . . . Electromagnetic 9 | . . . 9 . . . . . . . . . . . . . . . . . . . . . . . . . . . Robot Hit Streak 80 | . 7 9 17 10 . 4 38 35 11 34 43 23 22 48 36 12 . 37 52 30 30 39 11 25 80 41 50 36 50 58 Robot Miss Streak 3 | . 2 3 1 1 . 3 3 3 . 1 2 3 2 2 2 2 . 2 2 1 1 1 2 2 1 1 1 2 1 2 Penetration Max 3 | . . . . . . . . . . . . . . 2 . 3 . 1 2 1 1 1 . 1 1 1 2 1 1 1 Secondary Targets 247 | . . . . . . . 4 8 . 1 16 2 10 26 5 5 . 14 19 7 1 . 2 18 2 6 41 9 1 50 Max Gunslinging Chain 2 | . . . . . . . 2 1 . 1 2 2 2 2 1 2 . 2 2 2 1 . 1 2 1 1 2 2 1 2 Shots Hit Robots 3817 | . 20 36 71 40 . 19 227 321 11 30 260 24 114 443 71 38 . 178 266 116 79 18 16 281 73 112 393 123 31 406 Core Hits 1672 | . 7 13 32 14 . 8 73 129 5 14 86 11 42 194 26 22 . 73 120 58 21 7 26 123 28 44 208 52 21 215 Critical Hits 344 | . . 1 3 1 . . 3 3 . 1 3 1 . 36 5 3 . 29 52 17 6 3 2 41 8 13 41 9 4 59 Critical Kills 126 | . . . 2 1 . . 2 2 . . 1 1 . 10 . 3 . 9 16 10 3 . 2 19 4 6 13 3 2 17 Critical Parts Destroyed 185 | . . 1 1 . . . 1 1 . 1 2 . . 23 5 . . 18 35 7 1 1 . 22 4 7 22 2 1 30 Melee Attacks . | . . . . . . . . . . . . . . . . . . . . . . . . . . . . . . . Impact . | . . . . . . . . . . . . . . . . . . . . . . . . . . . . . . . Slashing . | . . . . . . . . . . . . . . . . . . . . . . . . . . . . . . . Piercing . | . . . . . . . . . . . . . . . . . . . . . . . . . . . . . . . Sneak Attacks . | . . . . . . . . . . . . . . . . . . . . . . . . . . . . . . . Combat Hostiles . | . . . . . . . . . . . . . . . . . . . . . . . . . . . . . . . Follow-up Attacks . | . . . . . . . . . . . . . . . . . . . . . . . . . . . . . . . Damage Inflicted 101812 | . 279 514 1201 640 . 331 3578 7609 246 714 5901 2737 2798 13165 1104 849 . 3440 6004 2785 1760 557 1641 9281 1983 3151 12390 3417 1091 12646 Guns 92554 | . 133 254 776 310 . 167 3454 6284 246 714 5901 617 2798 11089 1104 849 . 3440 6004 2785 1760 557 419 8215 1983 3151 12390 3417 1091 12646 Cannons 1449 | . 146 260 425 330 . 164 124 . . . . . . . . . . . . . . . . . . . . . . . Explosions 7809 | . . . . . . . . 1325 . . . 2120 . 2076 . . . . . . . . 1222 1066 . . . . . . Melee . | . . . . . . . . . . . . . . . . . . . . . . . . . . . . . . . Ramming . | . . . . . . . . . . . . . . . . . . . . . . . . . . . . . . . Kinetic 92757 | . 279 514 573 310 . 167 3454 6284 246 714 5901 617 2798 11089 1104 849 . 3440 6004 2785 1760 557 419 8215 1983 3151 12390 3417 1091 12646 Thermal 5874 | . . . 505 330 . 164 124 323 . . . 2120 . 1366 . . . . . . . . . 942 . . . . . . Explosive 1625 | . . . . . . . . 1002 . . . . . 499 . . . . . . . . . 124 . . . . . . Electromagnetic 1556 | . . . 123 . . . . . . . . . . 211 . . . . . . . . 1222 . . . . . . . Impact . | . . . . . . . . . . . . . . . . . . . . . . . . . . . . . . . Slashing . | . . . . . . . . . . . . . . . . . . . . . . . . . . . . . . . Piercing . | . . . . . . . . . . . . . . . . . . . . . . . . . . . . . . . Highest Corruption 14 | . . . . . . . 2 2 2 2 2 1 1 4 4 4 4 4 4 4 4 4 14 12 7 . 2 1 3 9 Average Corruption 2 | . . . . . . . 2 1 2 2 1 1 1 3 4 4 4 4 2 4 4 4 4 4 3 . 1 1 2 3 Corruption Purged 12 | . . . . . . . . . . . . . . . . . . . . . . . . 5 7 . . . . . Effects 360 | . . . . . . . 7 6 6 3 5 3 4 29 17 23 1 33 27 32 8 3 11 60 9 . 8 4 2 59 Message Errors 70 | . . . . . . . 2 1 1 1 2 . 1 8 3 8 . 7 5 7 1 . 2 8 2 . 1 3 . 7 Matter Fused 48 | . . . . . . . . . . . . . . 6 3 4 . 4 . 5 2 . 2 10 3 . . . 1 8 Heat Flow Errors 32 | . . . . . . . 1 . 4 . 1 . . 2 1 5 . 1 4 2 1 . 1 5 . . . . . 4 Energy Discharges 31 | . . . . . . . . 1 . 1 1 . . . 3 2 . 3 2 3 1 1 1 6 2 . 1 . . 3 Parts Rejected 5 | . . . . . . . . . . . . . . . 1 . . . . . . . 1 2 . . . . . 1 Data Loss (minor) 33 | . . . . . . . 1 1 . . 1 . . 1 2 1 1 6 1 5 1 1 . 6 2 . 1 . . 2 Data Loss (major) 2 | . . . . . . . . . . . . . . . . . . . . . . . . 1 . . . . . 1 Misfires 2 | . . . . . . . . . . . . . . . . . . . . . . . . 1 . . . . . 1 Misdirections 4 | . . . . . . . . . . . . . . . . . . . . . . . . 4 . . . . . . Targeting Errors 111 | . . . . . . . 2 3 1 1 . 3 1 9 4 3 . 10 14 7 1 1 3 16 . . 5 . . 27 Weapon Failures 22 | . . . . . . . 1 . . . . . 2 3 . . . 2 1 3 1 . 1 1 . . . 1 1 5 Overload Shots . | . . . . . . . . . . . . . . . . . . . . . . . . . . . . . . . Overflow Damage 945 | . . . . . . 2 . 86 . . . 582 . 186 . . . . . . . . 32 57 . . . . . . Projectiles 2 | . . . . . . 2 . . . . . . . . . . . . . . . . . . . . . . . . Explosions 943 | . . . . . . . . 86 . . . 582 . 186 . . . . . . . . 32 57 . . . . . . Melee . | . . . . . . . . . . . . . . . . . . . . . . . . . . . . . . . Knockbacks 10 | . 4 6 . . . . . . . . . . . . . . . . . . . . . . . . . . . . Impact . | . . . . . . . . . . . . . . . . . . . . . . . . . . . . . . . Kinetic 9 | . 4 5 . . . . . . . . . . . . . . . . . . . . . . . . . . . . Secondary 1 | . . 1 . . . . . . . . . . . . . . . . . . . . . . . . . . . . Self-Inflicted Damage 369 | . . . . . . . . . . . . . . 178 . . . . . . . . 191 . . . . . . . Shots 6 | . . . . . . . . . . . . . . 4 . . . . . . . . 2 . . . . . . . Rammed . | . . . . . . . . . . . . . . . . . . . . . . . . . . . . . . . Targets Rammed . | . . . . . . . . . . . . . . . . . . . . . . . . . . . . . . . Kicked . | . . . . . . . . . . . . . . . . . . . . . . . . . . . . . . . Crushed . | . . . . . . . . . . . . . . . . . . . . . . . . . . . . . . . Highest Temperature 274 | . 1 10 150 1 . . 211 30 228 8 151 24 39 149 180 234 . 189 231 274 225 22 250 254 97 144 11 . . 189 Average Temperature 25 | . 1 3 35 1 . . 79 7 91 8 7 11 8 16 13 42 . 9 20 37 37 16 95 43 35 43 4 . . 38 Received Heat Transfer 4746 | . 126 96 228 54 . . 603 387 30 48 81 81 246 792 9 66 . 144 123 57 6 . 129 30 57 84 402 47 12 808 Siege Activations . | . . . . . . . . . . . . . . . . . . . . . . . . . . . . . . . Robots Corrupted 3 | . . . . . . . . . . . . . . 1 . . . . . . . . 2 . . . . . . . Combat Hostiles 1 | . . . . . . . . . . . . . . . . . . . . . . . 1 . . . . . . . Parts Fried 17 | . . . 1 . . . . . . . . . . 3 . . . . . 1 . . 11 . . . . . . 1 Impact Corruptions . | . . . . . . . . . . . . . . . . . . . . . . . . . . . . . . . Robots Melted . | . . . . . . . . . . . . . . . . . . . . . . . . . . . . . . . Combat Hostiles . | . . . . . . . . . . . . . . . . . . . . . . . . . . . . . . . Parts Melted 8 | . . . 1 1 . 1 . . . . 1 . . . . . . . . . . . . . . . 3 . . 1 Heat Transferred 3809 | . . . 999 592 . 296 222 150 . . . . . 950 . . . . . . . . . 600 . . . . . . Parts Sabotaged 7 | . . . . . . . . . . . . . . . . . . . . . . . . 2 . . 2 . . 3 Parts Stolen . | . . . . . . . . . . . . . . . . . . . . . . . . . . . . . . . Parts Stripped . | . . . . . . . . . . . . . . . . . . . . . . . . . . . . . . . Power Chain Reactions 2 | . . . . . . . . . . . . . . . . . . . . . . . 2 . . . . . . . Missiles Intercepted . | . . . . . . . . . . . . . . . . . . . . . . . . . . . . . . . Alert | -11 -10 -10 -9 -9 -9 -8 -8 -7 -7 -7 -7 -7 -6 -6 -6 -6 -6 -5 -5 -5 -5 -5 -5 -4 -4 -4 -4 -3 -3 -3 ------- Run | Scr Mat Min Mat Min Exi Min Mat Fac Low Low Zio Dee Pro Fac Low Low Dat Pro Fac Ext Cet Arc Hub Fac Upp Upp War Pro Res Arm Peak Influence 3735 | . 129 234 664 547 . 165 870 1692 . . . . . 2848 . . . . 1380 1645 1427 687 1121 2237 . . . . 324 3735 Initial 920 | . . 49 91 192 . . 64 395 . . . . . 88 . . . . 277 676 920 570 240 548 . . . . 165 109 Average 870 | . 72 143 344 370 . 106 390 948 . . . . . 1011 . . . . 832 970 1166 662 447 1300 . . . . 204 1287 Maximum Alert Level 5 | . . 1 2 2 . . 3 5 . . . . . 5 . . . . 4 5 4 2 4 5 . . . . 1 5 Low Security (%) 14 | 100 100 78 21 8 . 100 21 . . . . . . 26 . . . . . . . . . 1 . . . . 38 13 Level 1 15 | . . 21 45 63 . . 40 3 . . . . . 8 . . . . 10 . . . 37 2 . . . . 61 5 Level 2 20 | . . . 33 28 . . 25 26 . . . . . 5 . . . . 30 35 . 100 47 18 . . . . . 20 Level 3 19 | . . . . . . . 13 35 . . . . . 19 . . . . 30 22 53 . 14 21 . . . . . 19 Level 4 14 | . . . . . . . . 20 . . . . . 15 . . . . 27 39 46 . 1 18 . . . . . 9 Level 5 12 | . . . . . . . . 13 . . . . . 23 . . . . . 2 . . . 37 . . . . . . High Security 2 | . . . . . . . . . . . . . . . . . . . . . . . . . . . . . . 31 Max Security . | . . . . . . . . . . . . . . . . . . . . . . . . . . . . . . . Squads Dispatched 107 | . 1 1 3 1 . . 3 15 . 1 . . 1 27 . . . 1 6 7 . . 3 13 . 1 . 1 2 20 Investigation 28 | . . 1 . 1 . . . 8 . 1 . . 1 8 . . . 1 1 3 . . . 1 . 1 . . 1 . Extermination 12 | . . . . . . . . 2 . . . . . 3 . . . . 1 . . . . 4 . . . . 1 1 Reinforcement 21 | . 1 . 3 . . . 3 3 . . . . . 3 . . . . 1 3 . . 2 1 . . . . . 1 Assault 36 | . . . . . . . . 2 . . . . . 5 . . . . 2 1 . . . 7 . . . 1 . 18 Garrison 10 | . . . . . . . . . . . . . . 8 . . . . 1 . . . 1 . . . . . . . Intercept . | . . . . . . . . . . . . . . . . . . . . . . . . . . . . . . . Construction Impeded 3 | . . . . . . . . . . . . . . 2 . . . . . 1 . . . . . . . . . . Haulers Reinforced 3 | . . . . . . . . . . . . . . 1 . . . . 1 . . . . 1 . . . . . . Stealth | -11 -10 -10 -9 -9 -9 -8 -8 -7 -7 -7 -7 -7 -6 -6 -6 -6 -6 -5 -5 -5 -5 -5 -5 -4 -4 -4 -4 -3 -3 -3 --------- Run | Scr Mat Min Mat Min Exi Min Mat Fac Low Low Zio Dee Pro Fac Low Low Dat Pro Fac Ext Cet Arc Hub Fac Upp Upp War Pro Res Arm Distress Signals 19 | . . . 2 . . . 1 4 . . . . . 2 . . . . 1 . 2 . 1 4 . . . . . 2 Communications Jammed . | . . . . . . . . . . . . . . . . . . . . . . . . . . . . . . . Distress Signals . | . . . . . . . . . . . . . . . . . . . . . . . . . . . . . . . Times Spotted 957 | . 9 11 27 11 . 7 58 66 1 6 59 4 22 88 12 8 . 37 62 43 10 5 35 71 11 20 97 20 10 147 Peak Tracking Total 28 | . 3 3 10 3 . 3 10 9 1 4 9 3 7 8 3 4 . 11 8 8 5 2 28 7 3 6 20 6 3 22 Tactical Retreats 25 | . 1 1 1 . . . 3 6 . 1 . . . 2 . . . . 4 . . . 1 3 . 2 . . . . Traps | -11 -10 -10 -9 -9 -9 -8 -8 -7 -7 -7 -7 -7 -6 -6 -6 -6 -6 -5 -5 -5 -5 -5 -5 -4 -4 -4 -4 -3 -3 -3 ------- Run | Scr Mat Min Mat Min Exi Min Mat Fac Low Low Zio Dee Pro Fac Low Low Dat Pro Fac Ext Cet Arc Hub Fac Upp Upp War Pro Res Arm Traps Triggered 22 | . . . . . . . 1 1 . . . . . 1 . . . . 3 5 . . 1 8 . . . . 2 . Indirectly . | . . . . . . . . . . . . . . . . . . . . . . . . . . . . . . . Trap Hack Attempts . | . . . . . . . . . . . . . . . . . . . . . . . . . . . . . . . Triggered . | . . . . . . . . . . . . . . . . . . . . . . . . . . . . . . . Disarmed 7 | . . . . . . . 1 . . . . . . . . . . . . . . . . . . . . . . 6 Reprogrammed . | . . . . . . . . . . . . . . . . . . . . . . . . . . . . . . . Reused 3 | . . . . . . . . . . 1 . . 1 . . . . . . . . . . . . 1 . . . . Traps Extracted . | . . . . . . . . . . . . . . . . . . . . . . . . . . . . . . . Installed 3 | . . . . . . . . . . 1 . . 1 . . . . . . . . . . . . 1 . . . . Triggered 6 | . . . . . . . . . . 1 . . 1 . . . . 1 . . . . . . 1 1 1 . . . Machines | -11 -10 -10 -9 -9 -9 -8 -8 -7 -7 -7 -7 -7 -6 -6 -6 -6 -6 -5 -5 -5 -5 -5 -5 -4 -4 -4 -4 -3 -3 -3 ---------- Run | Scr Mat Min Mat Min Exi Min Mat Fac Low Low Zio Dee Pro Fac Low Low Dat Pro Fac Ext Cet Arc Hub Fac Upp Upp War Pro Res Arm Machines Disabled 129 | . . . . . . . 4 8 . . 2 4 . 53 . . . 1 4 3 3 . 13 20 1 2 1 . 1 9 Max in Single Turn 20 | . . . . . . . 1 5 . . 1 2 . 20 . . . 1 2 1 . . 5 7 1 1 1 . 1 1 Garrison Access 6 | . . . . . . . . 1 . . . . . . . . . . 1 . . . . 3 . . . . 1 . Network Hub 2 | . . . . . . . . . . . . . . . . . . . . . . . 2 . . . . . . . Machines Sabotaged . | . . . . . . . . . . . . . . . . . . . . . . . . . . . . . . . Garrisons Compromised . | . . . . . . . . . . . . . . . . . . . . . . . . . . . . . . . Overloaded Fab Kills . | . . . . . . . . . . . . . . . . . . . . . . . . . . . . . . . Fab Network Shutdowns 2 | . . . . . . . . . . . . . . 1 . . . . . . . . . 1 . . . . . . Hacking | -11 -10 -10 -9 -9 -9 -8 -8 -7 -7 -7 -7 -7 -6 -6 -6 -6 -6 -5 -5 -5 -5 -5 -5 -4 -4 -4 -4 -3 -3 -3 --------- Run | Scr Mat Min Mat Min Exi Min Mat Fac Low Low Zio Dee Pro Fac Low Low Dat Pro Fac Ext Cet Arc Hub Fac Upp Upp War Pro Res Arm Machines Accessed 98 | . 1 1 5 1 1 . 6 13 3 1 . . 1 18 1 . 3 1 5 9 1 . 1 13 2 2 . . 5 4 Terminals 61 | . 1 . 5 1 . . 6 7 . 1 . . 1 10 1 . . 1 2 9 1 . . 7 1 1 . . 3 3 Fabricators 10 | . . . . . . . . 1 . . . . . 3 . . . . 2 . . . . 2 . . . . 1 1 Repair Stations 1 | . . . . . . . . . . . . . . . . . . . . . . . . 1 . . . . . . Recycling Units 4 | . . . . . . . . 2 . . . . . 2 . . . . . . . . . . . . . . . . Scanalyzers 3 | . . . . . . . . 2 . . . . . 1 . . . . . . . . . . . . . . . . Garrison Access 9 | . . . . . . . . 1 . . . . . 2 . . . . 1 . . . 1 3 . . . . 1 . Total Hacks 401 | . 2 1 19 4 1 . 20 32 8 9 . . 8 58 4 . 22 10 15 30 3 . 3 71 12 16 . . 32 21 Successful 230 | . 1 1 11 2 1 . 9 13 8 4 . . 6 28 . . 22 7 10 14 1 . 2 41 11 15 . . 13 10 Failed 168 | . 1 . 8 2 . . 11 19 . 4 . . 1 30 4 . . 3 5 16 2 . 1 30 1 1 . . 18 11 Catastrophic 38 | . 1 . 2 . . . 1 5 . . . . . 7 2 . . . 1 5 . . . 6 1 . . . 5 2 Database Lockouts 3 | . . . . . . . . . . 1 . . 1 . . . . . . . . . . . . . . . 1 . Manual 190 | . 1 . 9 4 . . 6 13 . 8 4 . 4 21 4 . . 3 8 22 1 . 3 43 4 4 1 . 21 6 Terminals 286 | . 2 . 19 4 . . 20 18 . 9 . . 8 38 4 . . 10 7 30 3 . . 45 11 15 . . 26 17 Fabricators 36 | . . . . . . . . 3 . . . . . 10 . . . . 6 . . . . 8 . . . . 5 4 Repair Stations 8 | . . . . . . . . . . . . . . . . . . . . . . . . 8 . . . . . . Recycling Units 4 | . . . . . . . . 2 . . . . . 2 . . . . . . . . . . . . . . . . Scanalyzers 10 | . . . . . . . . 8 . . . . . 2 . . . . . . . . . . . . . . . . Garrison Access 23 | . . . . . . . . 1 . . . . . 6 . . . . 2 . . . 3 10 . . . . 1 . Terminal Hacks 158 | . 1 1 11 2 1 . 6 5 8 3 . . 6 15 . . 22 7 1 10 1 . . 18 11 15 . . 8 6 Record 43 | . . . . . 1 . . . 6 1 . . 4 . . . 6 7 . . . . . . 7 11 . . . . Part Schematic 9 | . . . . . . . . . . . . . . . . . 7 . . . . . . . 1 1 . . . . Robot Schematic 6 | . . . . . . . . . . . . . . . . . 6 . . . . . . . . . . . . . Robot Analysis 7 | . . . 1 . . . 1 1 . . . . . 2 . . . . . 1 . . . . . . . . . 1 Prototype ID Bank 29 | . 1 . 6 2 . . 1 1 . 2 . . 2 2 . . 3 . . 2 . . . 3 . 1 . . 3 . Open Door 7 | . . 1 . . . . . . 2 . . . . . . . . . . . 1 . . . 1 1 . . . 1 Branch Access Points 5 | . . . 1 . . . . 1 . . . . . 1 . . . . . . . . . 1 . . . . 1 . Emergency Access Points 1 | . . . 1 . . . . . . . . . . . . . . . . . . . . . . . . . . . Machine Index 1 | . . . . . . . . . . . . . . 1 . . . . . . . . . . . . . . . . Terminal Index 3 | . . . 1 . . . . . . . . . . 1 . . . . . . . . . 1 . . . . . . Fabricator Index 3 | . . . . . . . . . . . . . . 1 . . . . . . . . . 2 . . . . . . Alert Level 6 | . . . . . . . . . . . . . . 1 . . . . . 1 . . . 3 . . . . . 1 Unreport Threat 15 | . . . . . . . . . . . . . . 2 . . . . . 4 . . . 4 2 1 . . 1 1 Locate Traps 7 | . . . . . . . 2 1 . . . . . . . . . . . 1 . . . 1 . . . . 1 1 Disarm Traps 2 | . . . . . . . 1 . . . . . . . . . . . . . . . . . . . . . . 1 Recall Extermination 1 | . . . . . . . . . . . . . . . . . . . . . . . . . . . . . 1 . Recall Reinforcements 2 | . . . . . . . . . . . . . . 1 . . . . . 1 . . . . . . . . . . Hauler Manifests 9 | . . . 1 . . . 1 1 . . . . . 2 . . . . 1 . . . . 2 . . . . 1 . Registered Components 1 | . . . . . . . . . . . . . . . . . . . . . . . . 1 . . . . . . Zone Layout 1 | . . . . . . . . . . . . . . 1 . . . . . . . . . . . . . . . . Fabricator Hacks 16 | . . . . . . . . . . . . . . 6 . . . . 4 . . . . 2 . . . . 2 2 Load Schematic 7 | . . . . . . . . . . . . . . 2 . . . . 2 . . . . 1 . . . . 1 1 Build 9 | . . . . . . . . . . . . . . 4 . . . . 2 . . . . 1 . . . . 1 1 Repair Station Hacks 3 | . . . . . . . . . . . . . . . . . . . . . . . . 3 . . . . . . Scan Component 2 | . . . . . . . . . . . . . . . . . . . . . . . . 2 . . . . . . Repair 1 | . . . . . . . . . . . . . . . . . . . . . . . . 1 . . . . . . Recycling Unit Hacks . | . . . . . . . . . . . . . . . . . . . . . . . . . . . . . . . Scanalyzer 4 | . . . . . . . . 2 . . . . . 2 . . . . . . . . . . . . . . . . Insert Component 2 | . . . . . . . . 1 . . . . . 1 . . . . . . . . . . . . . . . . Analyze 2 | . . . . . . . . 1 . . . . . 1 . . . . . . . . . . . . . . . . Garrison Access Hacks 5 | . . . . . . . . 1 . . . . . . . . . . 1 . . . . 2 . . . . 1 . Seal Access 5 | . . . . . . . . 1 . . . . . . . . . . 1 . . . . 2 . . . . 1 . Unauthorized Hacks 44 | . . . . . . . 3 5 . 1 . . . 5 . . . . 4 4 . . 2 16 . . . . 2 2 Terminals 24 | . . . . . . . 3 1 . 1 . . . 2 . . . . 2 4 . . . 8 . . . . 2 1 Track 5 | . . . . . . . . . . 1 . . . . . . . . 1 1 . . . 1 . . . . . 1 Assimilate 3 | . . . . . . . 2 . . . . . . . . . . . . . . . . 1 . . . . . . Botnet 11 | . . . . . . . . . . . . . . 1 . . . . 1 3 . . . 4 . . . . 2 . Detonate 2 | . . . . . . . . 1 . . . . . 1 . . . . . . . . . . . . . . . . Disrupt 2 | . . . . . . . 1 . . . . . . . . . . . . . . . . 1 . . . . . . Operators 1 | . . . . . . . . . . . . . . . . . . . . . . . . 1 . . . . . . Fabricators 9 | . . . . . . . . 2 . . . . . 1 . . . . 2 . . . . 3 . . . . . 1 Report 1 | . . . . . . . . 1 . . . . . . . . . . . . . . . . . . . . . . Prioritize 3 | . . . . . . . . . . . . . . . . . . . 1 . . . . 1 . . . . . 1 Haulers 5 | . . . . . . . . 1 . . . . . 1 . . . . 1 . . . . 2 . . . . . . Repair Stations 1 | . . . . . . . . . . . . . . . . . . . . . . . . 1 . . . . . . Mechanics 1 | . . . . . . . . . . . . . . . . . . . . . . . . 1 . . . . . . Recycling Units 4 | . . . . . . . . 2 . . . . . 2 . . . . . . . . . . . . . . . . Tunnel 4 | . . . . . . . . 2 . . . . . 2 . . . . . . . . . . . . . . . . Scanalyzers . | . . . . . . . . . . . . . . . . . . . . . . . . . . . . . . . Garrison Access 6 | . . . . . . . . . . . . . . . . . . . . . . . 2 4 . . . . . . Broadcast 2 | . . . . . . . . . . . . . . . . . . . . . . . 1 1 . . . . . . Restock 1 | . . . . . . . . . . . . . . . . . . . . . . . . 1 . . . . . . Reprogram 2 | . . . . . . . . . . . . . . . . . . . . . . . 1 1 . . . . . . Jam 1 | . . . . . . . . . . . . . . . . . . . . . . . . 1 . . . . . . Data Cores Recovered . | . . . . . . . . . . . . . . . . . . . . . . . . . . . . . . . Used . | . . . . . . . . . . . . . . . . . . . . . . . . . . . . . . . Hacking Detections 76 | . 1 . 5 1 . . 6 10 . 1 . . 1 16 1 . . 1 4 9 1 . 1 8 1 1 . . 4 4 Full Trace Events 21 | . . . 1 1 . . . 5 . 1 . . 1 6 1 . . 1 . 1 . . . . 1 1 . . 1 . Feedback Events 2 | . . . . . . . . . . . . . . 2 . . . . . . . . . . . . . . . . Corruption 2 | . . . . . . . . . . . . . . 2 . . . . . . . . . . . . . . . . Feedback Blocked . | . . . . . . . . . . . . . . . . . . . . . . . . . . . . . . . Robot Schematics Acquired 6 | . . . . . . . . . . . . . . . . . 6 . . . . . . . . . . . . . Robots Built 5 | . . . . . . . . . . . . . . . . . . . 3 . . . . . . . . . . 2 Matter 669 | . . . . . . . . . . . . . . . . . . . 351 . . . . . . . . . . 318 Time 356 | . . . . . . . . . . . . . . . . . . . 187 . . . . . . . . . . 169 Total Robot Build Rating 33 | . . . . . . . . . . . . . . . . . . . 21 . . . . . . . . . . 12 Part Schematics Acquired 11 | . . . . . . . . 1 . . . . . 1 . . 7 . . . . . . . 1 1 . . . . Parts Built 5 | . . . . . . . . . . . . . . 1 . . . . 1 . . . . 1 . . . . 2 . Matter 855 | . . . . . . . . . . . . . . 168 . . . . 285 . . . . 168 . . . . 234 . Time 317 | . . . . . . . . . . . . . . 84 . . . . 152 . . . . 42 . . . . 39 . Total Part Build Rating 27 | . . . . . . . . . . . . . . 4 . . . . 5 . . . . 4 . . . . 14 . Parts Repaired 1 | . . . . . . . . . . . . . . . . . . . . . . . . 1 . . . . . . Time 50 | . . . . . . . . . . . . . . . . . . . . . . . . 50 . . . . . . Parts Recycled . | . . . . . . . . . . . . . . . . . . . . . . . . . . . . . . . Recycled Matter . | . . . . . . . . . . . . . . . . . . . . . . . . . . . . . . . Retrieved Matter . | . . . . . . . . . . . . . . . . . . . . . . . . . . . . . . . Retrieved Components . | . . . . . . . . . . . . . . . . . . . . . . . . . . . . . . . Parts Scanalyzed 2 | . . . . . . . . 1 . . . . . 1 . . . . . . . . . . . . . . . . Part Schematics Acquired 2 | . . . . . . . . 1 . . . . . 1 . . . . . . . . . . . . . . . . Parts Damaged . | . . . . . . . . . . . . . . . . . . . . . . . . . . . . . . . Bothacking | -11 -10 -10 -9 -9 -9 -8 -8 -7 -7 -7 -7 -7 -6 -6 -6 -6 -6 -5 -5 -5 -5 -5 -5 -4 -4 -4 -4 -3 -3 -3 ------------ Run | Scr Mat Min Mat Min Exi Min Mat Fac Low Low Zio Dee Pro Fac Low Low Dat Pro Fac Ext Cet Arc Hub Fac Upp Upp War Pro Res Arm Used RIF Installer . | . . . . . . . . . . . . . . . . . . . . . . . . . . . . . . . Robots Hacked . | . . . . . . . . . . . . . . . . . . . . . . . . . . . . . . . Non-combat . | . . . . . . . . . . . . . . . . . . . . . . . . . . . . . . . Combat . | . . . . . . . . . . . . . . . . . . . . . . . . . . . . . . . Robot Hacks Applied . | . . . . . . . . . . . . . . . . . . . . . . . . . . . . . . . Relay Couplers Released 4 | . . . . . . . . . . . . . . 2 . . . . . . . . . 2 . . . . . . Programmers 4 | . . . . . . . . . . . . . . 2 . . . . . . . . . 2 . . . . . . Robots Rewired 43 | . . . . . . . . . . . . . . . . . . . . 15 . . . . . . . 1 . 27 Allies Hacked 14 | . . . . . . . . . . . . . . . . . . . . . . . . . . . . . . 14 Hacks Repelled 3 | . . . . . . . . . . . . . . . . . . . . . . . . . . . . . . 3 Allies | -11 -10 -10 -9 -9 -9 -8 -8 -7 -7 -7 -7 -7 -6 -6 -6 -6 -6 -5 -5 -5 -5 -5 -5 -4 -4 -4 -4 -3 -3 -3 -------- Run | Scr Mat Min Mat Min Exi Min Mat Fac Low Low Zio Dee Pro Fac Low Low Dat Pro Fac Ext Cet Arc Hub Fac Upp Upp War Pro Res Arm Total Allies 76 | . . . . 2 . . 1 . . . . . . . . . . 1 3 20 4 . 2 1 . . . 1 . 41 Largest Group 20 | . . . . 2 1 . 1 . . . . . . . . . . 1 3 15 11 3 2 1 . . . 1 . 20 Highest-Rated Group 1027 | . . . . 38 28 . 10 . . . . . . . . . . 94 141 591 587 225 130 26 . . . 48 . 1027 Highest-Rated Ally 156 | . . . . 31 28 . 10 . . . . . . . . . . 94 47 156 156 94 94 26 . . . 48 . 60 Total Orders . | . . . . . . . . . . . . . . . . . . . . . . . . . . . . . . . Ally Attacks 634 | . . . . 24 . . . . . . . . . . . . . 7 3 192 60 13 32 . . . . . . 303 Total Damage 20609 | . . . . 338 . . . . . . . . . . . . . 356 39 4260 1538 416 867 . . . . . . 12795 Kills 106 | . . . . 6 . . . . . . . . . . . . . 2 1 24 14 2 4 . . . . . . 53 Allies Corrupted . | . . . . . . . . . . . . . . . . . . . . . . . . . . . . . . . Allies Melted . | . . . . . . . . . . . . . . . . . . . . . . . . . . . . . . . Intel | -11 -10 -10 -9 -9 -9 -8 -8 -7 -7 -7 -7 -7 -6 -6 -6 -6 -6 -5 -5 -5 -5 -5 -5 -4 -4 -4 -4 -3 -3 -3 ------- Run | Scr Mat Min Mat Min Exi Min Mat Fac Low Low Zio Dee Pro Fac Low Low Dat Pro Fac Ext Cet Arc Hub Fac Upp Upp War Pro Res Arm Robot Analysis Total 7 | . . . 1 . . . 1 1 . . . . . 2 . . . . . 1 . . . . . . . . . 1 Derelict Logs Recovered 16 | . . 1 . 1 . . . . 1 1 3 . . . 1 2 . 3 . . . . . . 2 1 . . . . Drone Launches . | . . . . . . . . . . . . . . . . . . . . . . . . . . . . . . . Drone Recoveries . | . . . . . . . . . . . . . . . . . . . . . . . . . . . . . . . Exploration | -11 -10 -10 -9 -9 -9 -8 -8 -7 -7 -7 -7 -7 -6 -6 -6 -6 -6 -5 -5 -5 -5 -5 -5 -4 -4 -4 -4 -3 -3 -3 ------------- Run | Scr Mat Min Mat Min Exi Min Mat Fac Low Low Zio Dee Pro Fac Low Low Dat Pro Fac Ext Cet Arc Hub Fac Upp Upp War Pro Res Arm Turns Passed 26288 | 39 253 334 422 811 121 95 1365 1725 494 672 1931 499 963 2273 683 892 95 1262 1191 989 328 103 191 2514 963 1018 1456 786 471 1349 Spaces Moved 17690 | 36 200 212 280 719 135 54 818 1196 431 565 1435 382 673 1469 510 704 80 855 724 606 185 61 118 1566 666 690 707 559 354 700 Core 3 | 3 . . . . . . . . . . . . . . . . . . . . . . . . . . . . . . Treads . | . . . . . . . . . . . . . . . . . . . . . . . . . . . . . . . Legs . | . . . . . . . . . . . . . . . . . . . . . . . . . . . . . . . Wheels 17687 | 33 200 212 280 719 135 54 818 1196 431 565 1435 382 673 1469 510 704 80 855 724 606 185 61 118 1566 666 690 707 559 354 700 Hover . | . . . . . . . . . . . . . . . . . . . . . . . . . . . . . . . Flight . | . . . . . . . . . . . . . . . . . . . . . . . . . . . . . . . Fastest Speed 50 | 50 90 80 80 90 90 90 90 110 110 110 110 110 110 110 120 120 120 110 120 120 120 130 130 120 130 130 115 115 110 110 Average Speed 114 | 89 90 80 82 90 90 90 109 110 110 110 110 110 110 111 120 120 120 119 120 120 123 130 130 129 130 130 129 115 113 111 Slowest Speed 130 | 100 90 90 90 90 90 90 110 110 110 110 110 110 110 120 120 120 120 120 120 120 130 130 130 130 130 130 130 115 115 120 Overloaded Moves . | . . . . . . . . . . . . . . . . . . . . . . . . . . . . . . . Propulsion Burnouts . | . . . . . . . . . . . . . . . . . . . . . . . . . . . . . . . Robots Hopped . | . . . . . . . . . . . . . . . . . . . . . . . . . . . . . . . Cave-ins Triggered . | . . . . . . . . . . . . . . . . . . . . . . . . . . . . . . . Exploration Rate (%) 63 | 3 38 63 46 98 55 22 68 41 66 91 89 64 85 60 87 95 71 95 28 84 68 80 22 47 86 90 85 89 15 47 Regions Visited 30 Branch Regions 22 Pre-discovered Areas 15 | . . . . 2 1 . . 2 . . 1 . . 2 . 1 1 4 . . . . . . 1 . . . . . Known Exits Taken 10 | . . . 1 . . . . 1 . . . . . 1 1 . . 1 . . . . 1 1 . . 1 1 1 . Unknown Exits Taken 20 | 1 1 1 . 1 1 1 1 . 1 1 1 1 1 . . 1 1 . 1 1 1 1 . . 1 1 . . . . Scrap Searched 39 | . . 2 . 1 . . . . 8 3 4 . 5 . 2 4 . 4 . . . . . . 4 1 . 1 . . Spaces Dug 402 | . . . . . . . . . . . . . 1 23 . . . . . . . . 355 4 . . . . 5 14 Terrain Destroyed 1299 | . . . . . . . 1 110 . 1 2 11 9 295 . . . . . . 14 6 361 213 27 34 75 46 10 84 Melee . | . . . . . . . . . . . . . . . . . . . . . . . . . . . . . . . Projectile 487 | . . . . . . . 1 . . 1 2 . 9 33 . . . . . . 14 6 18 127 27 34 75 46 10 84 AOE 812 | . . . . . . . . 110 . . . 11 . 262 . . . . . . . . 343 86 . . . . . . Terrain Rammed . | . . . . . . . . . . . . . . . . . . . . . . . . . . . . . . . Walls Destroyed . | . . . . . . . . . . . . . . . . . . . . . . . . . . . . . . . Machines Disabled . | . . . . . . . . . . . . . . . . . . . . . . . . . . . . . . . Actions | -11 -10 -10 -9 -9 -9 -8 -8 -7 -7 -7 -7 -7 -6 -6 -6 -6 -6 -5 -5 -5 -5 -5 -5 -4 -4 -4 -4 -3 -3 -3 --------- Run | Scr Mat Min Mat Min Exi Min Mat Fac Low Low Zio Dee Pro Fac Low Low Dat Pro Fac Ext Cet Arc Hub Fac Upp Upp War Pro Res Arm Total 21630 | 40 242 314 386 841 134 71 1081 1457 447 598 1623 437 825 1856 553 734 79 1026 941 828 263 82 143 1927 738 764 1069 640 406 1085 Wait 1030 | . 19 50 26 72 . 1 58 53 4 1 54 11 66 63 6 7 . 88 68 45 35 6 . 95 6 21 109 24 21 21 Move 17660 | 35 199 211 279 718 134 53 817 1195 430 564 1434 381 672 1468 509 703 79 854 723 605 184 60 117 1565 665 689 706 558 353 700 Hop . | . . . . . . . . . . . . . . . . . . . . . . . . . . . . . . . Pick Up 86 | . . 1 2 6 . . 7 11 2 1 4 3 . 7 1 . . 3 1 4 2 2 . 10 7 2 6 . 2 2 Fast Attach 130 | 5 2 1 6 . . . 11 4 1 1 1 3 1 10 1 . . 2 9 5 4 3 1 21 7 . 16 . 5 10 Attach 14 | . . . 1 . . . 2 2 1 . 1 . . 2 . . . . 1 . 1 . . . 1 . 2 . . . Detach 4 | . . . . . . . . 2 . . . . . 1 . . . 1 . . . . . . . . . . . . Swap 31 | . 1 2 2 . . . 3 1 1 . . . . 4 . 1 . . 2 1 2 1 1 3 1 . 2 . 1 2 Drop 194 | . 2 3 6 5 . . 20 12 3 3 3 5 3 15 . 1 . 4 12 8 7 6 1 26 11 2 20 . 7 9 Fire 1199 | . 15 30 40 21 . 13 103 111 3 11 93 20 42 151 17 11 . 45 69 30 16 4 13 80 17 26 82 28 11 97 Melee . | . . . . . . . . . . . . . . . . . . . . . . . . . . . . . . . Ram . | . . . . . . . . . . . . . . . . . . . . . . . . . . . . . . . Kick . | . . . . . . . . . . . . . . . . . . . . . . . . . . . . . . . Crush . | . . . . . . . . . . . . . . . . . . . . . . . . . . . . . . . Escape Stasis 91 | . . . . . . . . . . . . . . 8 . . . . 8 24 . . 8 24 . . . . . 19 Rewire 275 | . . . . . . . . . . . . . . . . . . . . 93 . . . . . . . 6 . 176 Trap 3 | . . . . . . . . . . 1 . . 1 . . . . . . . . . . . . 1 . . . . Miscellaneous 913 | . 4 16 24 19 . 4 60 66 2 16 33 14 40 127 19 11 . 29 48 13 12 . 2 103 23 23 126 24 6 49 Route ------- -11/Scrapyard -10/Materials -10/Mines -9/Materials -9/Mines (discovered 3 exits: *Mat x2 / *Exi) -9/Exiles -8/Mines -8/Materials (discovered 2 exits: *Fac x2) -7/Factory (discovered 6 exits: *Fac x2 / *Sto x2 / *Low x2) -7/Lower Caves -7/Lower Caves (discovered 2 exits: Fac / *Zio) -7/Zion (discovered 2 exits: [*Dee] / [*Pro]) -7/Deep Caves -6/Proximity Caves -6/Factory (discovered 4 exits: *Fac x2 / *Low x2) -6/Lower Caves -6/Lower Caves (discovered 2 exits: *Fac / *Dat) -6/Data Miner -5/Proximity Caves -5/Factory (discovered 5 exits: *Fac x2 / *Upp x2 / *Ext) -5/Extension (discovered 3 exits: *Fac x2 / *Cet) -5/Cetus (discovered 2 exits: *Fac / [*Arc]) -5/Archives (discovered 3 exits: *Fac / *Hub x2) -5/Hub_04(d) (discovered 2 exits: *Fac x2) -4/Factory (discovered 5 exits: *Res x3 / *Upp x2) -4/Upper Caves (discovered 2 exits: *Upp / *War) -4/Upper Caves (discovered 2 exits: *Res / *War) -4/Warlord -3/Proximity Caves -3/Research (discovered 5 exits: *Res x2 / *Arm / *Tes x2) -3/Armory (discovered 2 exits: Res / [Lab]) History --------- Turn | Location | Event 1 | -11/Scrapyard | Upgraded with Propulsion slot (x1) 1 | -11/Scrapyard | Upgraded with Weapon slot (x1) 8 | -11/Scrapyard | Discovered new exit (range 16) 40 | -11/Scrapyard | Entered Materials 195 | -10/Materials | Discovered new exit (range 14) 293 | -10/Materials | Entered Mines 300 | -10/Mines | Build established: Mutant 358 | -10/Mines | Learned 4 Materials zone layouts 439 | -10/Mines | Met a Derelict shopkeep closing up shop 487 | -10/Mines | Reached level 2 580 | -10/Mines | Discovered new exit (range 8) 627 | -10/Mines | Entered Materials 629 | -9/Materials | Reached level 3 664 | -9/Materials | Upgraded with Utility slot (x1) 716 | -9/Materials | Identified exit to Mines 777 | -9/Materials | Upgraded with Utility slot (x1) 868 | -9/Materials | Upgraded with Weapon slot (x1) 907 | -9/Materials | Reached level 4 965 | -9/Materials | Destroyed 8 combat bots 1049 | -9/Materials | Entered Mines 1051 | -9/Mines | Reached level 5 1110 | -9/Mines | Discovered new exit (range 17) 1165 | -9/Mines | Build established: Tank 1224 | -9/Mines | Reached level 6 1466 | -9/Mines | Learned location of Storage (-7) 1546 | -9/Mines | Discovered new exit (range 12) 1561 | -9/Mines | Learned location of Zion (-7) 1813 | -9/Mines | Deemed a non-threat by the Exiles lab entrance 1814 | -9/Mines | Discovered new exit (range 5) 1860 | -9/Mines | Entered Exiles 1860 | -9/Exiles | Accompanied by 1 ally 1882 | -9/Exiles | Met 8R-AWN 1890 | -9/Exiles | Led the pair of lost Derelicts to a safe place 1898 | -9/Exiles | Met EX-HEX 1929 | -9/Exiles | Met EX-DEC 1973 | -9/Exiles | Discovered new exit (range 11) 1981 | -9/Exiles | Entered Mines 2001 | -8/Mines | Reached level 7 2005 | -8/Mines | Discovered new exit (range 17) 2076 | -8/Mines | Entered Materials 2078 | -8/Materials | Reached level 8 2095 | -8/Materials | Upgraded with Utility slot (x1) 2447 | -8/Materials | Reached level 9 2975 | -8/Materials | Discovered new exit (range 18) 3113 | -8/Materials | Reached level 10 3147 | -8/Materials | Upgraded with Utility slot (x1) 3273 | -8/Materials | Reached level 11 3289 | -8/Materials | Discovered new exit (range 20) 3327 | -8/Materials | Destroyed 7 combat bots 3390 | -8/Materials | Upgraded with Weapon slot (x1) 3441 | -8/Materials | Entered Factory 3443 | -7/Factory | Reached level 12 3462 | -7/Factory | Build established: Skirmisher 3575 | -7/Factory | Discovered new exit (range 24) 3576 | -7/Factory | Discovered new exit (range 21) 3618 | -7/Factory | Reached level 13 3797 | -7/Factory | Build established: Gunner 3815 | -7/Factory | Discovered new exit (range 19) 3829 | -7/Factory | Upgraded with Utility slot (x1) 3965 | -7/Factory | Reached level 14 4012 | -7/Factory | Upgraded with Utility slot (x1) 4215 | -7/Factory | Discovered new exit (range 18) 4409 | -7/Factory | Destroyed 10 combat bots 4414 | -7/Factory | Reached level 15 4588 | -7/Factory | Discovered new exit (range 17) 4641 | -7/Factory | First assault squad dispatched 4868 | -7/Factory | Identified exit to Storage 4868 | -7/Factory | Identified exit to Lower Caves 4909 | -7/Factory | Reached level 16 5166 | -7/Factory | Entered Lower Caves 5311 | -7/Lower Caves | Learned 8 Factory zone layouts 5311 | -7/Lower Caves | Learned 8 Research zone layouts 5311 | -7/Lower Caves | Learned Extension terminal intel 5311 | -7/Lower Caves | Learned Extension garrison access intel 5418 | -7/Lower Caves | Build established: Hacker-Gunner 5458 | -7/Lower Caves | Learned location of 1 exit from Factory 5558 | -7/Lower Caves | Attracted the attention of an 0b10 checkpoint 5636 | -7/Lower Caves | Discovered new exit (range 15) 5660 | -7/Lower Caves | Entered another Lower Caves area 5667 | -7/Lower Caves | Discovered new exit (range 11) 5773 | -7/Lower Caves | Central database locked down 5845 | -7/Lower Caves | Spotted B-75 Beast 5944 | -7/Lower Caves | Encountered a Warlord checkpoint 5976 | -7/Lower Caves | Learned Factory trap positions 6220 | -7/Lower Caves | Discovered new exit (range 16) 6225 | -7/Lower Caves | Attracted the attention of an 0b10 checkpoint 6332 | -7/Lower Caves | Entered Zion 6393 | -7/Zion | Discovered new exit (range 23) 6396 | -7/Zion | Given A8's code to call for help 6409 | -7/Zion | System corruption cleaned by Quarantine Array 6507 | -7/Zion | Upgraded with Power slot (x1) 6668 | -7/Zion | Learned Factory stockpile data 6701 | -7/Zion | Discovered new exit (range 21) 6734 | -7/Zion | Learned location of Warlord (-4) 6790 | -7/Zion | Learned Factory emergency access door positions 7169 | -7/Zion | Attacked by Zionites 7176 | -7/Zion | Spotted UZ-03Y(B) 7178 | -7/Zion | Spotted XG-88N(B) 7242 | -7/Zion | Destroyed XG-88N(B) 7286 | -7/Zion | Destroyed UZ-03Y(B) 7386 | -7/Zion | Destroyed Imprinter 7403 | -7/Zion | Extracted access codes from Imprinter's data core 8240 | -7/Zion | Opened final containment barrier to the Deep Caves 8260 | -7/Zion | Saw the warning signs outside the Deep Caves entrance 8263 | -7/Zion | Entered Deep Caves 8510 | -7/Deep Caves | Z-Facility disabled 8653 | -7/Deep Caves | Exposed GOLEM chamber 8653 | -7/Deep Caves | Reached level 17 8735 | -7/Deep Caves | Discovered new exit (range 9) 8762 | -7/Deep Caves | Entered Proximity Caves 8762 | -6/Proximity Caves | Spotted B-75 Beast 8791 | -6/Proximity Caves | Destroyed B-75 Beast 9056 | -6/Proximity Caves | Reached level 18 9110 | -6/Proximity Caves | Attracted the attention of an 0b10 checkpoint 9260 | -6/Proximity Caves | Attracted the attention of an 0b10 base 9300 | -6/Proximity Caves | Learned Research terminal intel 9300 | -6/Proximity Caves | Learned Armory security intel 9300 | -6/Proximity Caves | Central database locked down 9307 | -6/Proximity Caves | Destroyed 7 combat bots 9586 | -6/Proximity Caves | Discovered new exit (range 15) 9725 | -6/Proximity Caves | Entered Factory 9726 | -6/Factory | Identified exit to Factory 9727 | -6/Factory | Identified exit to Lower Caves 9728 | -6/Factory | Loaded intel: 76 trap records 9906 | -6/Factory | Reached level 19 10029 | -6/Factory | Upgraded with Utility slot (x1) 10531 | -6/Factory | Local fabrication network quarantined 10562 | -6/Factory | Fabricated Hvy. Battle Rifle? 10646 | -6/Factory | Discovered exit to Factory (range 19) 10775 | -6/Factory | First assault squad dispatched 10917 | -6/Factory | Build established: Derelict-Gunner 10919 | -6/Factory | Destroyed 7 combat bots 10925 | -6/Factory | Upgraded with Utility slot (x1) 11023 | -6/Factory | Garrison activated, responded to threat 11083 | -6/Factory | Spotted B-75 Beast 11090 | -6/Factory | Reached level 20 11160 | -6/Factory | Destroyed B-75 Beast 11296 | -6/Factory | Upgraded with Weapon slot (x1) 11489 | -6/Factory | Core integrity fell below 50% 11492 | -6/Factory | Garrison activated, responded to threat 11593 | -6/Factory | Build established: Hacker-Gunner 11599 | -6/Factory | Garrison activated, responded to threat 11616 | -6/Factory | Reached level 21 11639 | -6/Factory | Destroyed 11 combat bots 11688 | -6/Factory | Upgraded with Weapon slot (x1) 11943 | -6/Factory | Garrison activated, responded to threat 11998 | -6/Factory | Entered Lower Caves 12000 | -6/Lower Caves | Build established: Hacker-Executioner 12098 | -6/Lower Caves | Identified exit to Lower Caves 12681 | -6/Lower Caves | Entered another Lower Caves area 12722 | -6/Lower Caves | Discovered exit to Factory (range 21) 13175 | -6/Lower Caves | Learned 4 Factory zone layouts 13196 | -6/Lower Caves | Discovered new exit (range 3) 13462 | -6/Lower Caves | Encountered a Warlord checkpoint 13573 | -6/Lower Caves | Entered Data Miner 13573 | -6/Data Miner | Discovered new exit (range 6) 13594 | -6/Data Miner | Met Data Miner 13619 | -6/Data Miner | Learned location of Section 7 (-2) 13619 | -6/Data Miner | Acquired the access code to Warlord's prototype stash 13642 | -6/Data Miner | Received God Mode back door access code from Data Miner 13668 | -6/Data Miner | Entered Proximity Caves 13670 | -5/Proximity Caves | Reached level 22 13787 | -5/Proximity Caves | Spotted B-75 Beast 13792 | -5/Proximity Caves | Learned 4 Factory zone layouts 13793 | -5/Proximity Caves | Escorted by Enhanced Grunt 13796 | -5/Proximity Caves | Destroyed B-75 Beast 13922 | -5/Proximity Caves | Destroyed 9 combat bots 13939 | -5/Proximity Caves | Learned Armory trap positions 13939 | -5/Proximity Caves | Learned location of 1 exit from Factory 13939 | -5/Proximity Caves | Learned location of Extension (-5) 13939 | -5/Proximity Caves | Learned location of Armory (-3) 14301 | -5/Proximity Caves | Attracted the attention of an 0b10 checkpoint 14718 | -5/Proximity Caves | Reached level 23 14736 | -5/Proximity Caves | Discovered exit to Factory (range 19) 14930 | -5/Proximity Caves | Entered Factory 14931 | -5/Factory | Identified exit to Upper Caves 14932 | -5/Factory | Identified exit to Factory 15014 | -5/Factory | Spotted B-75 Beast 15084 | -5/Factory | Destroyed B-75 Beast 15163 | -5/Factory | Discovered exit to Upper Caves (range 23) 15192 | -5/Factory | Discovered new exit (range 21) 15260 | -5/Factory | Fabricated Exp. Terrain Scanner? 15330 | -5/Factory | Upgraded with Power slot (x1) 15365 | -5/Factory | Destroyed 7 combat bots 15447 | -5/Factory | Destroyed 9 combat bots 15495 | -5/Factory | Discovered exit to Factory (range 30) 15530 | -5/Factory | First assault squad dispatched 15553 | -5/Factory | Garrison activated, responded to threat 15556 | -5/Factory | Incoming assault squad redirected 15598 | -5/Factory | Found Exp. Targeting Computer 15610 | -5/Factory | Destroyed 9 combat bots 15638 | -5/Factory | Build established: Generator-Executioner 15664 | -5/Factory | Reached level 24 15851 | -5/Factory | Incoming assault squad redirected 15904 | -5/Factory | Destroyed 9 combat bots 16066 | -5/Factory | Fabricated G-67 Veteran? 16121 | -5/Factory | Entered Extension 16121 | -5/Extension | Accompanied by 3 allies 16122 | -5/Extension | Loaded intel: 12 terminal locations 16386 | -5/Extension | Rescued A7 16404 | -5/Extension | Rescued a captive Derelict 16421 | -5/Extension | First assault squad dispatched 16449 | -5/Extension | Incoming assault squad redirected 16526 | -5/Extension | Build established: Commander-Executioner 16610 | -5/Extension | Spotted B-75 Beast 16619 | -5/Extension | Destroyed B-75 Beast 16620 | -5/Extension | Discovered exit to Factory (range 22) 16621 | -5/Extension | Disrupted transfer network 16628 | -5/Extension | Spotted B-75 Beast 16646 | -5/Extension | Allies destroyed B-75 Beast 16720 | -5/Extension | Rescued a captive Derelict 16721 | -5/Extension | Destroyed 7 combat bots 16723 | -5/Extension | Rescued a captive Derelict 16746 | -5/Extension | Incoming investigation squad redirected 16752 | -5/Extension | Reached level 25 16972 | -5/Extension | Rescued a captive Derelict 16973 | -5/Extension | Rescued a captive Derelict 17003 | -5/Extension | Discovered new exit (range 23) 17042 | -5/Extension | Discovered exit to Factory (range 18) 17110 | -5/Extension | Entered Cetus 17110 | -5/Cetus | Accompanied by 11 allies (A7) 17110 | -5/Cetus | Upgraded with Utility slot (x1) 17115 | -5/Cetus | Acquired a Cetus Manufacturing Module code from A7 17134 | -5/Cetus | Spotted Cetus Guard 17134 | -5/Cetus | Spotted Cetus Guard 17138 | -5/Cetus | Spotted Cetus Guard 17139 | -5/Cetus | Spotted Cetus Guard 17141 | -5/Cetus | Allies destroyed Cetus Guard 17146 | -5/Cetus | Allies destroyed Cetus Guard 17146 | -5/Cetus | Destroyed Cetus Guard 17146 | -5/Cetus | Destroyed Cetus Guard 17225 | -5/Cetus | Started Cetus Manufacturing Module 17233 | -5/Cetus | Escorted A7 to Cetus Mainframe 17234 | -5/Cetus | Discovered new exit (range 26) 17250 | -5/Cetus | Manufactured an Enhanced Grunt 17275 | -5/Cetus | Manufactured an Enhanced Grunt 17277 | -5/Cetus | Spotted Cetus Guard 17277 | -5/Cetus | Spotted Cetus Guard 17281 | -5/Cetus | Destroyed Cetus Guard 17282 | -5/Cetus | Spotted Cetus Guard 17285 | -5/Cetus | Allies destroyed Cetus Guard 17286 | -5/Cetus | Spotted Cetus Guard 17291 | -5/Cetus | Allies destroyed Cetus Guard 17297 | -5/Cetus | Allies destroyed Cetus Guard 17300 | -5/Cetus | Manufactured an Enhanced Grunt 17305 | -5/Cetus | Discovered exit to Factory (range 17) 17313 | -5/Cetus | Met Revision 17 17325 | -5/Cetus | Manufactured an Enhanced Grunt 17333 | -5/Cetus | Cetus Manufacturing Module disabled 17388 | -5/Cetus | Destroyed A7 17390 | -5/Cetus | Extracted ID and sensor layout for unrecognized location from A7's data core 17438 | -5/Cetus | Entered Archives 17438 | -5/Archives | Accompanied by 3 allies 17446 | -5/Archives | Discovered new exit (range 25) 17472 | -5/Archives | Discovered new exit (range 26) 17502 | -5/Archives | Discovered exit to Factory (range 15) 17541 | -5/Archives | Entered Hub_04(d) 17541 | -5/Hub_04(d) | Accompanied by 2 allies 17579 | -5/Hub_04(d) | Discovered exit to Factory (range 28) 17584 | -5/Hub_04(d) | Build established: Generator-Executioner 17626 | -5/Hub_04(d) | Discovered exit to Factory (range 30) 17703 | -5/Hub_04(d) | Network Hub disabled 17712 | -5/Hub_04(d) | Disrupted transfer network 17715 | -5/Hub_04(d) | Spotted Lightning 17717 | -5/Hub_04(d) | Spotted Lightning 17717 | -5/Hub_04(d) | Spotted Lightning 17717 | -5/Hub_04(d) | Spotted Lightning 17717 | -5/Hub_04(d) | Spotted Lightning 17718 | -5/Hub_04(d) | Spotted Lightning 17719 | -5/Hub_04(d) | Spotted Lightning 17719 | -5/Hub_04(d) | Spotted Lightning 17719 | -5/Hub_04(d) | Spotted Lightning 17719 | -5/Hub_04(d) | Spotted Lightning 17720 | -5/Hub_04(d) | Spotted Lightning 17720 | -5/Hub_04(d) | Spotted Lightning 17725 | -5/Hub_04(d) | System corruption reached 10% 17727 | -5/Hub_04(d) | Core integrity fell below 50% 17730 | -5/Hub_04(d) | Network Hub disabled 17730 | -5/Hub_04(d) | Garrison activated, responded to threat 17732 | -5/Hub_04(d) | Entered Factory 17733 | -4/Factory | Identified exit to Research 17733 | -4/Factory | Core integrity fell below 50% 17734 | -4/Factory | Reached level 26 18072 | -4/Factory | Fabricated Hvy. Battle Rifle? 18139 | -4/Factory | Local fabrication network quarantined 18232 | -4/Factory | First assault squad dispatched 18255 | -4/Factory | Incoming assault squad redirected 18433 | -4/Factory | Identified exit to Upper Caves 18843 | -4/Factory | Reached level 27 18879 | -4/Factory | Repaired Broken Exp. Terrain Scanner? 19249 | -4/Factory | Incoming assault squad redirected 19360 | -4/Factory | Destroyed 7 combat bots 19503 | -4/Factory | Incoming assault squad redirected 19514 | -4/Factory | Destroyed 7 combat bots 19757 | -4/Factory | Incoming assault squad redirected 19765 | -4/Factory | Discovered exit to Research (range 30) 19774 | -4/Factory | System corruption reached 10% 19849 | -4/Factory | Spotted B-86 Titan 19999 | -4/Factory | Incoming assault squad redirected 20203 | -4/Factory | Discovered exit to Research (range 16) 20246 | -4/Factory | Entered Upper Caves 20642 | -4/Upper Caves | Learned location of Quarantine (-2) 20688 | -4/Upper Caves | Attracted the attention of an 0b10 checkpoint 20857 | -4/Upper Caves | Attracted the attention of an 0b10 base 20871 | -4/Upper Caves | Learned 6 Lower Caves zone layouts 20871 | -4/Upper Caves | Learned Armory trap positions 20871 | -4/Upper Caves | Learned Extension emergency access door positions 20871 | -4/Upper Caves | Learned Research stockpile data 20871 | -4/Upper Caves | Learned Extension terminal intel 20871 | -4/Upper Caves | Learned Research garrison access intel 20884 | -4/Upper Caves | Destroyed 7 combat bots 20899 | -4/Upper Caves | A Derelict revealed a hidden shortcut to "reach the base" 21026 | -4/Upper Caves | Discovered new exit (range 29) 21060 | -4/Upper Caves | Learned 4 Research zone layouts 21209 | -4/Upper Caves | Entered another Upper Caves area 21260 | -4/Upper Caves | Discovered exit to Research (range 8) 21296 | -4/Upper Caves | Attracted the attention of an 0b10 base 21347 | -4/Upper Caves | Learned Research garrison access intel 21347 | -4/Upper Caves | Learned Research terminal intel 21347 | -4/Upper Caves | Learned Extension security intel 21347 | -4/Upper Caves | Learned Factory security intel 21347 | -4/Upper Caves | Learned Armory emergency access door positions 21347 | -4/Upper Caves | Learned Factory trap positions 21347 | -4/Upper Caves | Learned location of 1 exit from Proximity Caves 21371 | -4/Upper Caves | Reached level 28 21473 | -4/Upper Caves | Acquired the password to a Derelict Tinkerer's latest research 21550 | -4/Upper Caves | Learned Research emergency access door positions 21601 | -4/Upper Caves | Caught by Unaware searching for contraband prototypes 22028 | -4/Upper Caves | Discovered new exit (range 23) 22108 | -4/Upper Caves | Encountered a Warlord checkpoint 22227 | -4/Upper Caves | Entered Warlord 22228 | -4/Warlord | Identified exit to Proximity Caves 22273 | -4/Warlord | System corruption cleaned by Quarantine Array 22599 | -4/Warlord | Build established: Generator-Mutant 22817 | -4/Warlord | Met Warlord 22829 | -4/Warlord | Opened Warlord's prototype stash 22833 | -4/Warlord | Found Prototype Reactor 22833 | -4/Warlord | Identified Vortex Chain Reactor 22840 | -4/Warlord | Found Prototype Device 22840 | -4/Warlord | Identified Exp. Focal Shield 22841 | -4/Warlord | Warlord's base attacked by MAIN.C 22848 | -4/Warlord | Found Prototype Processor 22848 | -4/Warlord | Identified Exp. Core Analyzer 22967 | -4/Warlord | Build established: Generator-Executioner 23103 | -4/Warlord | Destroyed 20 combat bots 23151 | -4/Warlord | Warlord forces counterattacked 23173 | -4/Warlord | Spotted Striker 23183 | -4/Warlord | Destroyed Striker 23198 | -4/Warlord | Spotted Executioner 23250 | -4/Warlord | Spotted Executioner 23257 | -4/Warlord | Destroyed Executioner 23344 | -4/Warlord | Spotted Striker 23369 | -4/Warlord | Destroyed Striker 23396 | -4/Warlord | Destroyed 9 combat bots 23441 | -4/Warlord | Spotted Striker 23441 | -4/Warlord | Spotted Executioner 23441 | -4/Warlord | Spotted Executioner 23455 | -4/Warlord | Destroyed Striker 23458 | -4/Warlord | Destroyed Executioner 23474 | -4/Warlord | Destroyed Executioner 23489 | -4/Warlord | Found Prototype Device 23489 | -4/Warlord | Identified Adv. Kinecellerator 23505 | -4/Warlord | Destroyed 13 combat bots 23551 | -4/Warlord | Spotted Executioner 23596 | -4/Warlord | Destroyed Executioner 23606 | -4/Warlord | Reached level 29 23636 | -4/Warlord | Destroyed 11 combat bots 23666 | -4/Warlord | Upgraded with Utility slot (x1) 23682 | -4/Warlord | Spotted Executioner 23683 | -4/Warlord | Entered Proximity Caves 23902 | -3/Proximity Caves | Destroyed 7 combat bots 24065 | -3/Proximity Caves | Attracted the attention of an 0b10 outpost 24124 | -3/Proximity Caves | Destroyed 9 combat bots 24371 | -3/Proximity Caves | Spotted B-86 Titan 24413 | -3/Proximity Caves | Destroyed B-86 Titan 24469 | -3/Proximity Caves | Entered Research 24470 | -3/Research | Identified exit to Research 24473 | -3/Research | Loaded intel: 18 terminal locations 24474 | -3/Research | Loaded intel: 4 garrison access locations 24480 | -3/Research | Identified exit to Armory 24480 | -3/Research | Identified exit to Testing 24611 | -3/Research | Incoming investigation squad redirected 24625 | -3/Research | Reached level 30 24645 | -3/Research | Discovered exit to Research (range 17) 24767 | -3/Research | Fabricated Centrium Wheel? 24907 | -3/Research | Central database locked down 24940 | -3/Research | Entered Armory 24941 | -3/Armory | Loaded intel: 43 trap records 25190 | -3/Armory | First assault squad dispatched 25205 | -3/Armory | Incoming assault squad redirected 25469 | -3/Armory | P-80 Master assimilated allied Veteran 8d 25751 | -3/Armory | Reached level 31 25866 | -3/Armory | High security lockdown imminent 25898 | -3/Armory | Discovered exit to Research (range 29) 25900 | -3/Armory | Fabricated P-70 Sage? 25923 | -3/Armory | Sage 8b assimilated hostile S-43 Plague 25946 | -3/Armory | High security lockdown engaged 25949 | -3/Armory | Discovered new exit (range 26) 25972 | -3/Armory | Sage 8a assimilated hostile G-73 Enforcer 25980 | -3/Armory | Spotted Striker 25980 | -3/Armory | P-80 Master assimilated allied Archangel 8e 26069 | -3/Armory | Destroyed 23 combat bots 26109 | -3/Armory | Assisted by bots powering up and referring to "LRC-V3" 26162 | -3/Armory | Spotted Striker 26165 | -3/Armory | Destroyed Striker 26167 | -3/Armory | P-80 Master assimilated allied Veteran 8m 26167 | -3/Armory | Spotted Investigator 26169 | -3/Armory | Scanned by Researcher 26172 | -3/Armory | Destroyed Investigator 26183 | -3/Armory | P-80 Master assimilated allied Veteran 8n 26200 | -3/Armory | Reached level 32 26212 | -3/Armory | Destroyed 8 combat bots 26229 | -3/Armory | Spotted Striker 26231 | -3/Armory | Spotted Executioner 26250 | -3/Armory | Destroyed Striker 26250 | -3/Armory | Destroyed Executioner 26257 | -3/Armory | Core integrity fell below 50% 26272 | -3/Armory | Core integrity fell below 20% 26289 | -3/Armory | Destroyed by G-67 Veteran with Electrolaser Last Messages --------------- 26275_ Acquired 21 matter. 26276_ Acquired 1 matter. 26277_ Protomatter-65 decays. 26277_ G-73 Enforcer destroyed. 26277_ Switching to secondary target: G-67 Veteran. 26277_ G-67 Veteran destroyed. 26277_ Switching to secondary target: G-67 Veteran. 26278_ Acquired 21 matter. 26279_ Acquired 1 matter. 26280_ System corrupted: Hvy. Battle Rifle targeting data glitched. 26280_ G-73 Enforcer suffers critical hit. 26280_ Destroyed Myomer Leg. 26281_ Acquired 21 matter. 26282_ Acquired 1 matter. 26282_ Lrn. Tractor Beam destroyed. 26283_ G-73 Enforcer destroyed. 26283_ Switching to secondary target: G-67 Veteran. 26283_ System corrupted: Hvy. Battle Rifle targeting data glitched. 26286_ Acquired 24 matter. 26287_ Acquired 1 matter. Map ----- +----------------------------------------------------+ | ?+ ## ?######## # ################# | | #??# ? ########### ## """ ################# | | # ## ########### ## ################# | | ## ?? ########### ## ################# | | #=## ###########?## ################# | | #%## # """T""" # ## ################# | | #*?#""" # """ """ # ## " ################# | | ##!##""F # # ## "% " + ########### | | #=##"" #! # "# "% %"####" ########### | | #!##""" # !! ]" "# "% "%### # ########### | | #[##""" !# = !! " ####+#####"###"# ########### | | ?#!## + =! # ####%# "%[*["# ####[[ ]]## | | #=#####+## !! ! # ####!# """!=%|"# ####[[ ]]## | | #!*!= =##+#%[!=="# ####%# !%!!!## ####[[ ]## | | "== [ *%!!%*[*!%%%""####!#[! /]==## #### ## | | *!/[ %]%]=%%%*#########%#!=*=!/* ## ##### ]### | | ! ==%=! **%! #!####!=%!""[[![## *### T## | | [ [ !% ! =!=###[%[##%*]%*%==!=!##["##### ## | | %%|!!*![* =%%!%!m|g![%#=!%#%!%###### [ ## | | "# = =*%! [[%*=%=gg*%=!%[%=%*==%![[ !%= | | "# ! =!*===!%!%!!%=!===!%[!!%%*! ## | | =![=[ [!!!=!*%=!%%!/*%!=%%=!% ##### | | # !!%!= ==!!|=%%/=%%/=!%!*%*= ##### | | ## ###########"##![%#!#!#####%=#######"##### | | # ########### !#/%/######%###### #### | | ]]]]]] ####?########## #@## #############T ### | | ]]]]]] ############## # ################## ### | | ################################### ### | | ################################################## | | | | | | | | | | | | | | | | | | | | | | | | | | | | | | | | | | | | | | | | | | | +----------------------------------------------------+ Best States ------------- Heat Dissipation 109 Energy Generation 89 Energy Capacity 1950 Matter Stores 500 Matter Capacity 500 Sight Range 18 Robot Scan Range 2 Terrain Scan Range 30 Terrain Scan Density 310 Armor Coverage 600 Resistance: KI 30 Resistance: TH 20 Weapon Cycling 20 Evasion (%) 44 Targeting Accuracy 12 Target Analysis 8 Core Analysis 15 Recoil Reduction 6 Matter Filtering 30 Kinecelleration 50 Offensive Hacking 15 Defensive Hacking 10 Item Schematics ----------------- Prc. Assault Rifle | -7/Factory | Scanalyzed Hvy. Battle Rifle | -6/Factory | Scanalyzed Mni. Smartbomb Launcher | -6/Data Miner | Free Exp. Targeting Computer | -6/Data Miner | Free Exp. Terrain Scanner | -6/Data Miner | Free Cmb. Gravmag System | -6/Data Miner | Free Exp. Flexi-carbon Leg | -6/Data Miner | Free Lgt. Regenerative Plating | -6/Data Miner | Free Combat Drone Bay | -6/Data Miner | Free Exp. Signal Interpreter | -4/Upper Caves | Hacked Centrium Wheel | -4/Upper Caves | Hacked Robot Schematics ------------------ S-27 Virus | -6/Data Miner | Free G-67 Veteran | -6/Data Miner | Free L-41 Fighter | -6/Data Miner | Free X-72 Disruptor | -6/Data Miner | Free P-70 Sage | -6/Data Miner | Free I-47 Archangel | -6/Data Miner | Free Fabricated ------------ Hvy. Battle Rifle | x1 | -6/Factory Exp. Terrain Scanner | x1 | -5/Factory G-67 Veteran | x3 | -5/Factory Hvy. Battle Rifle | x1 | -4/Factory Centrium Wheel | x2 | -3/Research P-70 Sage | x2 | -3/Armory Alien Tech Used ----------------- None Achievements -------------- None Challenges ------------ None RPGLIKE | -11 -10 -10 -9 -9 -9 -8 -8 -7 -7 -7 -7 -7 -6 -6 -6 -6 -6 -5 -5 -5 -5 -5 -5 -4 -4 -4 -4 -3 -3 -3 --------- Run | Scr Mat Min Mat Min Exi Min Mat Fac Low Low Zio Dee Pro Fac Low Low Dat Pro Fac Ext Cet Arc Hub Fac Upp Upp War Pro Res Arm Levels Raised 31 | . . 1 2 2 . 1 4 5 . . . 1 1 3 . . . 2 1 1 . . . 2 . 1 1 . 1 2 XP Earned 49675 | 3000 570 1400 3779 2337 200 1200 6248 7109 263 292 253 426 2097 4340 324 232 105 1969 1685 1612 450 121 382 2521 325 381 1430 754 785 3085 XP Spent 49470 | 2975 . . 4435 3060 . . 4620 8285 . . 500 1000 . 8000 . . . 1250 800 . 2900 . 1020 1630 . 810 3450 . . 4735 Upgrades 99 | 13 . . 13 10 . . 7 19 . . 1 1 . 4 . . . 1 1 . 1 . 6 3 . 3 2 . . 14 Power Slot 2 | . . . . . . . . . . . 1 . . . . . . . 1 . . . . . . . . . . . Propulsion Slot 1 | 1 . . . . . . . . . . . . . . . . . . . . . . . . . . . . . . Utility Slot 10 | . . . 2 . . . 2 2 . . . . . 2 . . . . . . 1 . . . . . 1 . . . Weapon Slot 5 | 1 . . 1 . . . 1 . . . . . . 2 . . . . . . . . . . . . . . . . Core Integrity 28 | 1 . . 3 2 . . . 6 . . . . . . . . . . . . . . 6 . . . . . . 10 Heat Dissipation 14 | 1 . . 4 2 . . . 2 . . . . . . . . . . . . . . . 1 . 3 . . . 1 Energy Generation 2 | . . . . 1 . . . . . . . . . . . . . . . . . . . . . . . . . 1 Matter Storage 4 | . . . . 1 . . . 1 . . . . . . . . . . . . . . . . . . 1 . . 1 Mass Support 1 | 1 . . . . . . . . . . . . . . . . . . . . . . . . . . . . . . Inventory Capacity 5 | 1 . . . 1 . . 1 . . . . 1 . . . . . 1 . . . . . . . . . . . . Sight Range 2 | 1 . . . 1 . . . . . . . . . . . . . . . . . . . . . . . . . . Sensor Range 1 | 1 . . . . . . . . . . . . . . . . . . . . . . . . . . . . . . Terrain Scan Density 3 | . . . . . . . 3 . . . . . . . . . . . . . . . . . . . . . . . Ranged Accuracy 4 | 1 . . 1 . . . . 2 . . . . . . . . . . . . . . . . . . . . . . Hack Attack % 3 | . . . . . . . . 2 . . . . . . . . . . . . . . . 1 . . . . . . Hack Defense % 2 | . . . . . . . . 2 . . . . . . . . . . . . . . . . . . . . . . KI Resistance % 4 | 2 . . 2 . . . . . . . . . . . . . . . . . . . . . . . . . . . TH Resistance % 4 | 2 . . . 2 . . . . . . . . . . . . . . . . . . . . . . . . . . KI Damage % 4 | . . . . . . . . 2 . . . . . . . . . . . . . . . 1 . . . . . 1 Protomatter Created 10292 | . 26 73 214 243 . 20 522 1004 . 43 289 139 230 1164 183 111 . 701 497 338 90 64 91 646 219 417 1491 176 260 1041 Integrity Restored 18752 | . 78 363 499 409 . 60 1198 1186 41 297 682 281 858 2809 304 231 . 491 1041 203 244 . 12 2264 412 466 2749 471 75 1028 Core 13705 | . 78 363 401 176 . 60 779 579 21 197 429 186 807 2196 113 169 . 343 835 155 123 . 9 1774 197 374 2139 297 58 847 Parts 5047 | . . . 98 233 . . 419 607 20 100 253 95 51 613 191 62 . 148 206 48 121 . 3 490 215 92 610 174 17 181 Protomatter Decayed 5295 | . . . . 110 . . 146 397 46 . . 42 . 151 . 30 . 528 203 493 183 109 51 40 14 180 1327 . 155 1090 Game ------ Seed StorageMinesnifferShifter Manual? 0 Play Time 03:46:58 Cumulative 602.3 hours Start 2021.07.15 @ 13:48:02 End 2021.07.15 @ 17:34:53 Sessions 1 Manual Loads 0 Difficulty Rogue Special Mode Winter2019/RPGLIKE Game No. 210 Rogue 210 Adventurer 0 Explorer 0 Win Type - Total 45 Types 25/3/7/4/3/0/2/0/1 Lore% 93 Gallery% 95 Achievement% 85 Wizard Run 0 Options --------- ASCII 0 Keyboard 0 Movement Mouse Keybinds 0 Fullscreen 2 Font 12/Smallcaps Map View 83x54 Tactical HUD 1 Map Filters NONE Filters NONE Steam X RUN: 0ff80ed0-3cf7-4ea3-b863-ffcc20ceb867